bitfinex/quotes_ETHUSD_20250525
["timestamp","ask_amount","ask_price","bid_price","bid_amount"]
[1748198264216,4.132,2517.4,2517.3,11.97251022]
[1748198265895,8.1,2517.4,2517.3,11.97251022]
[1748198267495,0.7779,2517.9,2517.4,8.0]
[1748198267699,0.7762,2518.1,2518.0,11.97140587]
[1748198267937,4.131,2518.3,2518.0,13.56561426]
[1748198268246,7.93910383,2518.2,2517.9,8.0]
[1748198268538,3.968,2518.1,2517.9,8.0]
[1748198268716,3.968,2518.1,2517.7,11.97179907]
[1748198269098,3.968,2518.0,2517.7,11.97179907]
[1748198269300,3.968,2518.0,2517.9,8.0]
[1748198270337,3.968,2518.0,2517.7,11.97181234]
[1748198270537,3.968,2518.0,2517.9,8.0]
[1748198271242,3.97100826,2518.3,2517.9,8.0]
[1748198271443,8.099,2518.2,2517.9,8.0]
[1748198271853,8.099,2518.2,2517.7,11.97182372]
[1748198271854,12.07010442,2518.2,2517.7,11.97182372]
[1748198272142,3.968,2518.1,2517.7,11.97182372]
[1748198272348,3.968,2518.1,2517.7,9.67300603]
[1748198272349,3.97151643,2518.0,2517.7,9.67300603]
[1748198272639,3.97151643,2518.0,2517.1,4.35952877]
[1748198272640,7.93959759,2517.9,2517.4,3.97224548]
[1748198272842,7.93959759,2517.9,2517.5,11.97218612]
[1748198273144,7.93959759,2517.9,2517.4,3.97228694]
[1748198273544,7.93959759,2517.9,2517.5,8.0]
[1748198274142,7.93959759,2517.9,2517.4,11.97225929]
[1748198274321,7.93959759,2517.9,2517.5,1.67309349]
[1748198274519,0.7762,2517.8,2517.4,3.97219531]
[1748198274724,3.967,2517.7,2517.4,3.97219531]
[1748198274924,3.967,2517.7,2517.5,3.97209637]
[1748198275137,3.967,2517.7,2517.4,3.97235242]
[1748198275138,3.967,2517.7,2517.4,3.97227476]
[1748198275348,3.967,2517.7,2517.5,3.9721725]
[1748198275549,3.967,2517.7,2517.5,5.64523723]
[1748198277030,3.967,2517.7,2517.6,8.0]
[1748198278865,8.098,2517.7,2517.6,8.0]
[1748198281396,8.098,2517.7,2517.6,11.97203686]
[1748198286200,0.7779,2518.0,2517.6,8.0]
[1748198286400,8.098,2517.9,2517.8,8.0]
[1748198287750,8.098,2517.9,2517.6,11.9719743]
[1748198290149,3.97203686,2517.6,2517.5,8.0]
[1748198290348,3.97225663,2517.5,2517.0,9.98997996]
[1748198290649,3.967,2517.4,2517.1,9.47396243]
[1748198290806,3.967,2517.4,2517.0,1.98997996]
[1748198291149,4.52393101,2516.4,2516.3,2.55223763]
[1748198291351,15.1581135,2516.4,2516.3,2.55223763]
[1748198291553,18.69625508,2516.4,2516.3,2.55223763]
[1748198292008,16.15707259,2516.4,2516.3,2.55223763]
[1748198292351,4.94676279,2516.0,2515.1,6.34560595]
[1748198292547,9.2450277,2516.0,2515.9,11.14121554]
[1748198294237,9.2450277,2516.0,2515.9,8.0]
[1748198294423,10.15267274,2516.0,2515.9,8.0]
[1748198300957,6.18567274,2516.0,2515.9,8.0]
[1748198301167,0.33126491,2516.0,2515.9,8.0]
[1748198301513,8.43126491,2516.0,2515.9,8.0]
[1748198305277,4.46126491,2516.0,2515.9,8.0]
[1748198305479,8.43126491,2516.0,2515.9,8.8231]
[1748198306782,0.33126491,2516.0,2515.9,12.79782077]
[1748198306981,8.43126491,2516.0,2515.9,14.4750759]
[1748198307284,8.43126491,2516.0,2515.9,10.50035513]
[1748198309555,8.43126491,2516.0,2515.9,14.4750759]
[1748198314299,4.30126491,2516.0,2515.9,14.4750759]
[1748198314922,0.33126491,2516.0,2515.9,14.4750759]
[1748198318029,8.57,2516.5,2516.4,4.75193101]
[1748198318247,16.67,2516.5,2516.4,5.62452937]
[1748198318547,12.7,2516.5,2516.4,13.62452937]
[1748198322716,12.7,2516.5,2516.4,12.84652937]
[1748198323290,3.97320531,2516.9,2516.4,12.84652937]
[1748198323291,0.4222,2517.4,2516.5,8.8179]
[1748198323486,4.17,2517.4,2517.1,8.0]
[1748198323691,4.17,2517.4,2517.1,11.97272257]
[1748198323692,3.969,2517.3,2517.1,11.97272257]
[1748198324226,3.969,2517.3,2517.1,11.97282587]
[1748198326126,3.969,2517.3,2517.0,11.97289759]
[1748198326427,3.969,2517.3,2517.0,8.0]
[1748198326819,3.969,2517.3,2517.0,11.97290427]
[1748198327953,4.5922,2517.4,2517.2,8.0]
[1748198328155,3.969,2517.3,2517.2,8.0]
[1748198329861,3.969,2517.3,2517.1,11.9727436]
[1748198332560,4.17,2517.4,2517.3,8.0]
[1748198332750,8.139,2517.4,2517.3,8.0]
[1748198333737,8.139,2517.4,2517.1,6.34083583]
[1748198334668,8.139,2517.4,2517.3,8.0]
[1748198335471,8.139,2517.4,2517.1,8.0]
[1748198335644,8.139,2517.4,2517.1,11.97279664]
[1748198341292,8.139,2517.4,2517.2,8.0]
[1748198344168,12.11141596,2517.4,2516.9,0.7735]
[1748198344362,12.11141596,2517.4,2517.0,3.97296957]
[1748198345287,12.11141596,2517.4,2516.9,12.74655678]
[1748198346303,8.139,2517.4,2517.0,3.97295961]
[1748198347465,3.968,2517.3,2517.2,8.0]
[1748198349204,0.4222,2517.6,2517.2,11.97266804]
[1748198349408,4.168,2517.5,2517.4,3.97235242]
[1748198349571,8.136,2517.5,2517.3,12.76093135]
[1748198351233,8.136,2517.5,2517.3,0.7885]
[1748198351373,9.34679143,2517.5,2517.1,8.0]
[1748198351575,12.10826583,2517.5,2517.1,8.0]
[1748198352472,12.10826583,2517.5,2517.1,11.97281803]
[1748198355306,3.97238384,2517.4,2517.0,12.72309766]
[1748198355525,3.968,2517.3,2517.0,12.72309766]
[1748198355823,3.968,2517.3,2516.9,8.0]
[1748198355983,3.968,2517.3,2517.0,3.97287902]
[1748198356184,7.94053397,2517.3,2516.9,12.84811722]
[1748198356496,3.968,2517.3,2516.9,12.84811722]
[1748198356698,3.968,2517.3,2517.0,3.97297596]
[1748198358726,3.968,2517.3,2517.0,8.0]
[1748198358936,3.968,2517.3,2517.0,3.97295785]
[1748198359703,4.142,2517.2,2517.0,3.97295785]
[1748198359906,3.968,2517.1,2517.0,3.97295785]
[1748198361112,3.968,2517.1,2516.9,12.84812642]
[1748198361289,3.968,2517.1,2516.9,12.8481504]
[1748198362260,3.97298371,2517.0,2516.9,8.0]
[1748198362540,0.4222,2517.0,2516.7,3.97338591]
[1748198362741,3.968,2516.9,2516.8,12.72336487]
[1748198365269,3.968,2516.9,2516.8,14.39304623]
[1748198365766,3.968,2516.9,2516.8,10.41988136]
[1748198366067,3.968,2516.9,2516.8,8.7502]
[1748198366870,3.97275328,2517.2,2516.8,8.7502]
[1748198366871,3.97275328,2517.2,2516.9,8.0]
[1748198367176,8.111,2517.1,2516.8,8.7502]
[1748198367480,3.97275328,2517.2,2516.8,8.7502]
[1748198367775,8.111,2517.1,2516.8,8.7502]
[1748198368183,12.08382745,2517.1,2516.8,0.7502]
[1748198368883,8.111,2517.1,2516.8,0.7502]
[1748198369240,8.111,2517.1,2516.8,4.72338727]
[1748198369440,8.111,2517.1,2516.8,6.39306533]
[1748198371980,12.08385725,2517.1,2516.8,2.41987806]
[1748198372176,8.111,2517.1,2516.8,0.7502]
[1748198372380,8.111,2517.1,2516.8,4.72348288]
[1748198372591,3.97206648,2517.6,2516.8,4.72348288]
[1748198372592,0.4222,2517.5,2516.9,11.97311226]
[1748198372901,8.111,2517.4,2517.1,11.97278513]
[1748198373368,4.143,2517.4,2517.1,11.97278513]
[1748198373568,8.111,2517.4,2517.0,11.9729016]
[1748198373887,8.111,2517.4,2517.2,8.0]
[1748198375496,3.968,2517.3,2517.2,8.0]
[1748198377192,3.968,2517.3,2517.0,9.66961751]
[1748198377397,3.968,2517.3,2517.0,13.64251866]
[1748198377578,4.3902,2517.3,2516.9,11.97305776]
[1748198378458,8.36278855,2517.3,2516.8,11.97320948]
[1748198379474,4.3902,2517.3,2516.8,11.97320948]
[1748198379799,4.3902,2517.3,2516.8,13.64657477]
[1748198380294,3.97297737,2517.1,2516.6,12.76052137]
[1748198380494,3.968,2517.0,2516.8,8.0]
[1748198380674,0.4222,2516.9,2516.5,11.97366996]
[1748198380862,0.4222,2516.9,2516.5,3.97366996]
[1748198381062,0.4222,2516.9,2516.6,8.0]
[1748198381291,0.4222,2516.9,2516.6,3.97361094]
[1748198381810,0.4222,2516.9,2516.8,8.0]
[1748198383997,4.5562,2516.9,2516.8,8.0]
[1748198387013,4.5562,2516.9,2516.6,3.97353969]
[1748198387215,3.968,2516.8,2516.7,8.0]
[1748198387415,3.968,2516.8,2516.7,11.9734573]
[1748198390418,4.134,2516.9,2516.8,11.97329942]
[1748198390625,8.102,2516.9,2516.8,11.97329942]
[1748198394437,8.102,2516.9,2516.8,8.0]
[1748198394727,13.74707046,2516.9,2516.8,8.0]
[1748198395732,9.7739289,2516.9,2516.8,8.0]
[1748198397197,8.5242,2516.9,2516.8,8.0]
[1748198402157,12.49734156,2516.9,2516.8,8.0]
[1748198402457,8.5242,2516.9,2516.8,8.0]
[1748198404351,12.49734156,2516.9,2516.8,8.0]
[1748198404550,8.5242,2516.9,2516.8,8.0]
[1748198405171,12.49734156,2516.9,2516.8,8.0]
[1748198405374,12.49734156,2516.9,2515.4,3.97540872]
[1748198405375,3.9734573,2516.7,2515.9,0.7884]
[1748198405581,7.94267239,2516.6,2515.7,4.76334851]
[1748198405763,4.39666702,2516.1,2515.7,4.76334851]
[1748198405967,3.969,2516.0,2515.7,4.84880786]
[1748198406474,3.969,2516.0,2515.8,8.0]
[1748198407649,7.9436431,2516.0,2515.6,8.0]
[1748198407848,3.97492018,2515.8,2515.3,3.14121554]
[1748198408090,3.969,2515.7,2515.4,0.79265348]
[1748198408380,3.969,2515.7,2515.4,8.0]
[1748198408581,3.969,2515.7,2515.4,11.97543277]
[1748198408743,3.969,2515.7,2515.6,8.0]
[1748198409137,3.969,2515.7,2515.4,11.97549057]
[1748198409355,3.969,2515.7,2515.4,9.59263061]
[1748198409778,4.3912,2515.7,2515.4,9.59263061]
[1748198409984,4.3912,2515.7,2515.4,8.0]
[1748198409985,8.36634445,2515.7,2515.4,8.0]
[1748198410280,8.36632395,2515.7,2515.4,8.0]
[1748198411178,4.39755281,2515.5,2515.3,3.14121554]
[1748198411384,12.07951085,2515.4,2515.3,3.14121554]
[1748198411885,12.07951085,2515.4,2515.3,11.14121554]
[1748198412057,13.72721722,2515.4,2515.3,11.14121554]
[1748198412252,3.97582697,2515.2,2515.1,0.05]
[1748198412552,7.94582697,2515.2,2515.1,0.05]
[1748198413866,8.36802697,2515.2,2515.1,0.05]
[1748198420477,4.3922,2515.2,2515.1,0.05]
[1748198420684,8.36802697,2515.2,2515.1,0.05]
[1748198422710,7.94582697,2515.2,2515.1,0.05]
[1748198423306,0.4222,2515.7,2515.2,8.0]
[1748198423507,8.105,2515.6,2515.2,5.54685957]
[1748198423693,8.105,2515.6,2515.2,1.5711]
[1748198423694,3.97543308,2515.5,2515.2,1.5711]
[1748198423898,8.105,2515.6,2515.1,0.05]
[1748198423899,3.97568791,2515.3,2515.1,0.05]
[1748198424099,3.971,2515.2,2515.1,0.05]
[1748198429443,4.135,2515.3,2515.2,8.0]
[1748198429617,8.106,2515.3,2515.2,8.0]
[1748198430018,3.971,2515.3,2515.2,8.0]
[1748198430212,3.971,2515.3,2515.2,9.67770834]
[1748198432141,4.135,2515.4,2515.2,9.67770834]
[1748198432354,3.971,2515.3,2515.2,9.67770834]
[1748198437269,3.97527141,2515.6,2515.2,9.67770834]
[1748198437469,8.106,2515.5,2515.2,13.65353162]
[1748198437968,8.106,2515.5,2515.2,9.67770834]
[1748198438182,12.08142442,2515.5,2515.2,9.67770834]
[1748198438882,3.97553496,2515.4,2515.2,9.67770834]
[1748198439200,7.94673415,2515.3,2515.1,0.8251]
[1748198439501,7.94673415,2515.3,2515.1,0.05]
[1748198439701,3.97582697,2515.2,2515.1,0.05]
[1748198439897,7.94677843,2515.3,2515.1,0.05]
[1748198441587,3.971,2515.3,2515.1,0.05]
[1748198441943,7.94674907,2515.3,2515.1,0.05]
[1748198442743,3.971,2515.3,2515.1,0.05]
[1748198443687,7.94668004,2515.3,2515.1,0.05]
[1748198444287,4.5572,2515.5,2515.1,0.05]
[1748198444451,7.94661663,2515.4,2515.1,0.05]
[1748198444866,3.971,2515.4,2515.1,0.05]
[1748198445492,8.53264126,2515.5,2515.1,0.05]
[1748198445785,3.971,2515.4,2515.1,0.05]
[1748198446683,3.971,2515.4,2515.1,8.05]
[1748198447888,7.94651099,2515.4,2515.1,8.05]
[1748198448094,3.971,2515.4,2515.1,8.05]
[1748198448395,3.971,2515.4,2515.1,4.02596793]
[1748198448909,7.94663073,2515.4,2515.1,0.05]
[1748198449080,7.94658132,2515.4,2515.1,0.05]
[1748198449280,3.97582697,2515.2,2515.1,0.05]
[1748198458615,4.94802697,2515.2,2515.1,0.05]
[1748198460122,4.39802697,2515.2,2515.1,0.05]
[1748198460304,3.971,2515.2,2515.1,0.05]
[1748198460622,7.94682697,2515.2,2515.1,0.05]
[1748198462230,9.12378661,2515.2,2515.1,0.05]
[1748198463228,5.15278661,2515.2,2515.1,0.05]
[1748198463433,13.25778661,2515.2,2515.1,0.05]
[1748198466538,13.80778661,2515.2,2515.1,0.05]
[1748198466742,14.22998661,2515.2,2515.1,0.05]
[1748198475727,14.9822473,2515.2,2515.1,0.05]
[1748198478758,15.20506547,2515.2,2515.1,0.05]
[1748198480010,14.9822473,2515.2,2515.1,0.05]
[1748198483988,14.9842473,2515.2,2515.1,0.05]
[1748198486695,6.8772473,2515.2,2515.1,0.05]
[1748198486900,14.9842473,2515.2,2515.1,0.05]
[1748198487107,19.1622473,2515.2,2515.1,0.05]
[1748198488000,19.38469923,2515.2,2515.1,0.05]
[1748198490009,15.41169923,2515.2,2515.1,0.05]
[1748198490323,19.38469923,2515.2,2515.1,0.05]
[1748198490814,19.1622473,2515.2,2515.1,0.05]
[1748198495393,19.38475221,2515.2,2515.1,0.05]
[1748198500902,11.27775221,2515.2,2515.1,0.05]
[1748198501103,15.41275221,2515.2,2515.1,0.05]
[1748198501319,11.23475221,2515.2,2515.1,0.05]
[1748198501521,15.20775221,2515.2,2515.1,0.05]
[1748198501692,10.81255221,2515.2,2515.1,0.05]
[1748198501898,14.23555221,2515.2,2515.1,0.05]
[1748198502297,14.78555221,2515.2,2515.1,0.05]
[1748198502506,14.5630473,2515.2,2515.1,0.05]
[1748198502831,5.9050473,2515.2,2515.1,0.05]
[1748198502992,12.83608766,2515.2,2515.1,0.05]
[1748198503190,13.38608766,2515.2,2515.1,0.05]
[1748198507931,13.80828766,2515.2,2515.1,0.05]
[1748198508428,13.38608766,2515.2,2515.1,0.05]
[1748198512529,17.56408766,2515.2,2515.1,0.05]
[1748198512741,20.18249615,2515.2,2515.1,0.05]
[1748198513412,20.4054967,2515.2,2515.1,0.05]
[1748198519133,12.2544967,2515.2,2515.1,0.05]
[1748198519436,13.60908821,2515.2,2515.1,0.05]
[1748198519908,13.38608766,2515.2,2515.1,0.05]
[1748198522205,17.56408766,2515.2,2515.1,0.05]
[1748198522410,17.98628766,2515.2,2515.1,0.05]
[1748198522736,18.20933549,2515.2,2515.1,0.05]
[1748198522938,21.33330492,2515.2,2515.1,0.05]
[1748198525948,8.62510492,2515.2,2515.1,0.05]
[1748198526124,9.08413549,2515.2,2515.1,0.8736]
[1748198526327,12.83408766,2515.2,2515.1,0.8736]
[1748198527299,13.38408766,2515.2,2515.1,0.8736]
[1748198530446,13.38408766,2515.2,2515.1,0.05]
[1748198530767,15.97827616,2515.2,2515.1,0.05]
[1748198531255,16.20142231,2515.2,2515.1,0.05]
[1748198531557,20.37942231,2515.2,2515.1,0.05]
[1748198533869,16.20142231,2515.2,2515.1,0.05]
[1748198535434,9.40908766,2515.2,2515.1,0.8242]
[1748198535621,13.38208766,2515.2,2515.1,0.8242]
[1748198536353,4.72808766,2515.2,2515.1,0.8242]
[1748198536559,13.38208766,2515.2,2515.1,0.8242]
[1748198537963,5.27808766,2515.2,2515.1,0.8242]
[1748198538143,13.38208766,2515.2,2515.1,0.8242]
[1748198539782,20.15407616,2515.2,2515.1,0.05]
[1748198540390,20.37721516,2515.2,2515.1,0.05]
[1748198542779,20.15407616,2515.2,2515.1,0.05]
[1748198544078,20.37722015,2515.2,2515.1,0.05]
[1748198552584,7.54522015,2515.2,2515.1,0.05]
[1748198552785,13.05523165,2515.2,2515.1,0.05]
[1748198552990,13.38208766,2515.2,2515.1,0.05]
[1748198555036,5.27808766,2515.2,2515.1,0.05]
[1748198555318,5.27808766,2515.2,2515.1,0.8104]
[1748198555319,8.85908766,2515.2,2515.1,0.8104]
[1748198555683,8.48748503,2515.2,2515.1,0.8104]
[1748198556079,8.10682697,2515.2,2515.1,0.8104]
[1748198556619,12.07982697,2515.2,2515.1,0.8104]
[1748198556932,12.07982697,2515.2,2515.1,1.69144]
[1748198557082,12.07982697,2515.2,2515.1,0.8104]
[1748198559628,12.62982697,2515.2,2515.1,0.8104]
[1748198569085,12.62982697,2515.2,2515.1,0.05]
[1748198577710,12.62882697,2515.2,2515.1,0.05]
[1748198577899,12.62882697,2515.2,2515.1,0.8605]
[1748198599484,16.80682697,2515.2,2515.1,0.8605]
[1748198599660,12.62882697,2515.2,2515.1,0.8605]
[1748198604210,8.65682697,2515.2,2515.1,0.8605]
[1748198604375,12.62882697,2515.2,2515.1,0.8605]
[1748198614142,8.65682697,2515.2,2515.1,0.8605]
[1748198614349,12.62882697,2515.2,2515.1,0.8605]
[1748198617254,12.62882697,2515.2,2515.1,0.05]
[1748198624362,14.33149861,2515.2,2515.1,0.05]
[1748198627758,12.62882697,2515.2,2515.1,0.05]
[1748198627950,3.97582697,2515.2,2515.1,0.8127]
[1748198628144,12.07482697,2515.2,2515.1,0.8127]
[1748198628978,8.10282697,2515.2,2515.1,0.8127]
[1748198629187,12.07482697,2515.2,2515.1,0.8127]
[1748198630094,3.97582697,2515.2,2515.1,0.8127]
[1748198630408,12.07182697,2515.2,2515.1,0.8127]
[1748198632771,12.07182697,2515.2,2515.1,0.05]
[1748198632971,13.67657708,2515.2,2515.1,0.05]
[1748198633468,12.07182697,2515.2,2515.1,0.05]
[1748198636481,8.09982697,2515.2,2515.1,0.05]
[1748198636814,12.07182697,2515.2,2515.1,0.05]
[1748198645525,8.09982697,2515.2,2515.1,0.8411]
[1748198645829,12.07182697,2515.2,2515.1,0.8411]
[1748198658354,3.97571619,2515.3,2515.1,0.8411]
[1748198658526,8.096,2515.2,2515.1,1.72521]
[1748198659353,3.97527008,2515.6,2515.1,1.72521]
[1748198659552,12.06849463,2515.5,2515.1,1.72521]
[1748198659849,3.97511777,2515.7,2515.4,0.7971]
[1748198660054,3.97535281,2515.5,2515.4,0.7971]
[1748198660227,7.94735281,2515.5,2515.4,0.7971]
[1748198660431,8.093,2515.5,2515.4,0.7971]
[1748198660929,8.58,2516.1,2515.7,0.7971]
[1748198661125,8.093,2516.0,2515.7,2.07434445]
[1748198661909,8.093,2516.0,2515.7,1.27724445]
[1748198662113,12.55449754,2516.1,2515.8,8.7971]
[1748198662350,8.093,2516.0,2515.8,8.7971]
[1748198662539,8.093,2516.0,2515.9,1.40493767]
[1748198663143,12.06756279,2516.0,2515.9,1.40493767]
[1748198663453,12.06756279,2516.0,2515.8,0.7971]
[1748198663688,8.58,2516.1,2515.8,0.7971]
[1748198663856,8.092,2516.0,2515.8,0.7971]
[1748198664153,8.58,2516.1,2515.8,0.7971]
[1748198664354,8.092,2516.0,2515.8,0.7971]
[1748198664573,8.092,2516.0,2515.8,8.7971]
[1748198664717,8.092,2516.0,2515.9,1.2772121]
[1748198665220,12.06665871,2516.0,2515.8,0.7971]
[1748198665421,3.971,2515.9,2515.8,0.7971]
[1748198667333,3.971,2515.9,2515.8,8.7971]
[1748198667966,8.58,2516.1,2515.9,0.7857]
[1748198668165,3.971,2516.0,2515.9,0.7857]
[1748198669368,16.67445375,2516.1,2515.9,0.7857]
[1748198669566,3.97456279,2516.0,2515.9,0.7857]
[1748198669743,7.94556279,2516.0,2515.9,0.7857]
[1748198672448,3.97472324,2515.9,2515.6,0.7551]
[1748198672643,3.97472324,2515.9,2515.7,0.47303858]
[1748198672971,3.971,2515.8,2515.7,0.47303858]
[1748198674581,7.94587876,2515.8,2515.7,0.47303858]
[1748198674874,3.971,2515.8,2515.7,0.47303858]
[1748198676836,3.97463551,2516.0,2515.7,0.47303858]
[1748198677036,3.971,2515.8,2515.7,0.47303858]
[1748198682492,3.971,2515.8,2515.7,8.47303858]
[1748198682859,12.55451672,2516.1,2515.7,8.47303858]
[1748198683059,4.12,2516.0,2515.9,8.7731]
[1748198683261,8.09,2516.0,2515.9,12.74782077]
[1748198683472,8.09,2516.0,2515.9,14.46740386]
[1748198684488,8.09,2516.0,2515.9,2.49268309]
[1748198684784,8.09,2516.0,2515.7,8.7731]
[1748198684785,12.06456279,2516.0,2515.7,8.7731]
[1748198684982,3.97478979,2515.9,2515.7,8.7731]
[1748198685277,3.97582697,2515.2,2515.1,0.05]
[1748198685482,3.97,2515.2,2515.1,0.05]
[1748198686261,3.97,2515.2,2515.1,8.05]
[1748198688589,3.97,2515.2,2515.1,0.05]
[1748198689508,7.94582697,2515.2,2515.1,0.05]
[1748198690570,3.97,2515.2,2515.1,0.05]
[1748198693604,7.94582697,2515.2,2515.1,0.05]
[1748198695481,8.36802697,2515.2,2515.1,0.05]
[1748198700448,8.91802697,2515.2,2515.1,0.05]
[1748198700757,10.56440007,2515.2,2515.1,0.05]
[1748198703672,8.91802697,2515.2,2515.1,0.05]
[1748198704962,8.49582697,2515.2,2515.1,0.05]
[1748198705278,8.91802697,2515.2,2515.1,0.05]
[1748198708670,4.94802697,2515.2,2515.1,0.05]
[1748198708902,12.06682697,2515.2,2515.1,0.05]
[1748198709184,8.09482697,2515.2,2515.1,0.05]
[1748198709483,12.06682697,2515.2,2515.1,0.05]
[1748198709686,8.091,2515.2,2515.1,0.05]
[1748198709885,4.119,2515.2,2515.1,0.05]
[1748198710055,12.06682697,2515.2,2515.1,0.05]
[1748198710249,7.94782697,2515.2,2515.1,0.05]
[1748198710474,12.06682697,2515.2,2515.1,0.05]
[1748198713487,3.97500014,2515.8,2515.3,8.0]
[1748198713784,12.55441829,2516.1,2515.5,8.0]
[1748198713785,8.091,2515.7,2515.5,8.0]
[1748198713991,3.972,2515.6,2515.4,0.8144]
[1748198714194,3.97520562,2515.6,2515.4,0.8144]
[1748198714394,7.94720562,2515.6,2515.4,0.8144]
[1748198714693,3.972,2515.6,2515.4,0.8144]
[1748198714899,3.972,2515.6,2515.5,0.88144]
[1748198716397,7.94719478,2515.6,2515.5,0.88144]
[1748198716604,7.94719478,2515.6,2515.4,0.8144]
[1748198718355,3.97535281,2515.5,2515.4,0.8144]
[1748198720499,3.97535281,2515.5,2515.1,8.05]
[1748198720659,3.97535281,2515.5,2515.2,0.8144]
[1748198720860,3.97535281,2515.5,2515.3,0.88644]
[1748198722608,3.971,2515.4,2515.3,0.88644]
[1748198725939,3.971,2515.4,2515.3,12.8621089]
[1748198726121,4.116,2515.6,2515.5,8.7741]
[1748198726298,8.087,2515.6,2515.5,8.7741]
[1748198726528,8.087,2515.6,2515.5,10.13769624]
[1748198726743,4.116,2515.7,2515.5,10.13769624]
[1748198726941,3.971,2515.6,2515.5,10.13769624]
[1748198728361,4.116,2515.7,2515.5,10.13769624]
[1748198728566,3.971,2515.6,2515.5,10.13769624]
[1748198729266,3.971,2515.6,2515.5,14.11304905]
[1748198735676,3.971,2515.6,2515.5,10.13769624]
[1748198735869,2.5986,2515.6,2515.5,14.11304905]
[1748198736069,2.5986,2515.6,2515.5,10.13769624]
[1748198736382,2.277,2515.6,2515.5,6.11304905]
[1748198736682,2.0636,2515.6,2515.5,14.11304905]
[1748198736890,4.116,2515.7,2515.6,11.97519478]
[1748198737041,2.55585841,2515.7,2515.6,15.36931916]
[1748198737660,2.16255841,2515.7,2515.6,15.36931916]
[1748198737946,0.60975841,2515.7,2515.6,15.36931916]
[1748198738775,1e-08,2515.7,2515.6,15.36931916]
[1748198742843,0.4222,2516.5,2516.1,8.0]
[1748198743128,0.4222,2516.5,2516.0,3.97444748]
[1748198743129,4.116,2516.3,2515.9,4.7603606]
[1748198743279,8.09010313,2516.3,2515.9,4.7603606]
[1748198743479,8.09010313,2516.3,2515.9,0.7857]
[1748198743694,8.09010313,2516.3,2516.0,0.95036928]
[1748198748340,8.09010313,2516.3,2516.0,1.14490182]
[1748198751412,4.116,2516.3,2516.1,8.0]
[1748198752524,4.116,2516.3,2516.0,1.14490182]
[1748198752710,4.116,2516.3,2516.0,9.14490182]
[1748198753400,3.9169816,2516.3,2516.0,9.14490182]
[1748198754439,3.9169816,2516.3,2516.0,8.95036928]
[1748198754639,3.9169816,2516.3,2516.0,12.92492704]
[1748198754812,3.9169816,2516.3,2516.0,0.95036928]
[1748198755012,3.9169816,2516.3,2516.0,8.95036928]
[1748198756509,7.8910784,2516.3,2516.0,8.95036928]
[1748198757535,7.8910784,2516.3,2516.0,0.95036928]
[1748198758063,3.97474355,2515.9,2515.6,12.37256145]
[1748198758264,3.97474355,2515.9,2515.6,8.0]
[1748198758972,4.39685628,2516.0,2515.6,8.0]
[1748198759870,3.97473338,2515.9,2515.6,8.0]
[1748198760365,3.97495882,2515.8,2515.6,8.0]
[1748198760551,3.97513307,2515.7,2515.5,1.99420298]
[1748198760862,3.97500552,2515.8,2515.5,1.99420298]
[1748198760863,3.97487876,2515.8,2515.5,1.99420298]
[1748198761069,3.97510731,2515.7,2515.5,1.99420298]
[1748198761429,3.97510731,2515.7,2515.5,2.19787159]
[1748198761658,3.97497257,2515.8,2515.5,2.19787159]
[1748198762266,3.97,2515.7,2515.5,2.19787159]
[1748198762870,9.30489204,2515.6,2515.5,1.99420298]
[1748198763030,8.63819478,2515.6,2515.5,1.99420298]
[1748198763232,9.06039478,2515.6,2515.5,1.99420298]
[1748198764750,3.97582697,2515.2,2515.1,2.24503327]
[1748198764953,4.39802697,2515.2,2515.1,2.24503327]
[1748198765159,4.39802697,2515.2,2515.1,10.63965359]
[1748198766180,0.4222,2515.2,2515.1,10.63965359]
[1748198766677,3.97,2515.3,2515.1,3.70361895]
[1748198767053,3.97557191,2515.4,2515.2,8.0]
[1748198767255,8.084,2515.3,2515.2,8.0]
[1748198769776,4.113,2515.3,2515.2,8.0]
[1748198769958,8.085,2515.4,2515.2,8.0]
[1748198770143,8.085,2515.4,2515.2,9.63097468]
[1748198770477,8.085,2515.4,2515.2,13.60678785]
[1748198770783,8.085,2515.5,2515.2,9.63097468]
[1748198770942,4.114,2515.5,2515.2,9.63097468]
[1748198771143,3.97504017,2515.7,2515.5,8.0]
[1748198771478,8.085,2515.6,2515.4,8.7516]
[1748198772191,4.114,2515.6,2515.4,0.7516]
[1748198772563,4.114,2515.6,2515.5,8.0]
[1748198772905,4.114,2515.6,2515.4,0.7516]
[1748198773194,4.114,2515.6,2515.5,8.0]
[1748198775993,8.08919478,2515.6,2515.5,8.0]
[1748198778384,3.97535281,2515.5,2515.2,8.0]
[1748198779885,8.08926592,2515.6,2515.2,11.9758189]
[1748198780488,4.114,2515.6,2515.2,11.9758189]
[1748198780665,4.114,2515.6,2515.3,2.11806935]
[1748198781063,8.08920505,2515.6,2515.3,2.11806935]
[1748198781478,3.97538057,2515.5,2515.3,2.11806935]
[1748198781986,8.08928668,2515.6,2515.3,2.11806935]
[1748198782686,4.114,2515.6,2515.3,2.11806935]
[1748198782889,4.114,2515.6,2515.4,9.40938929]
[1748198783667,8.08919509,2515.6,2515.4,9.40938929]
[1748198786192,3.97535281,2515.5,2515.4,9.40938929]
[1748198786390,3.97556819,2515.4,2515.2,8.0]
[1748198786592,3.97556819,2515.4,2515.1,9.25792032]
[1748198786784,3.97541794,2515.5,2515.1,13.23388904]
[1748198787685,3.97541794,2515.5,2515.1,9.25792032]
[1748198788098,3.97541794,2515.5,2515.1,13.23390497]
[1748198788301,3.97541794,2515.5,2515.2,1.7204905]